bitfinex/quotes_BTCUSD_20250408
["timestamp","ask_amount","ask_price","bid_price","bid_amount"]
[1744138801428,0.0004182,77285.0,77281.0,0.012939]
[1744138801429,0.2592022,77285.0,77280.0,0.258797]
[1744138801623,0.0004182,77285.0,77283.0,0.258789]
[1744138801831,0.0004182,77285.0,77279.0,0.01294]
[1744138802026,0.0004182,77285.0,77274.0,0.258817]
[1744138802027,0.258802,77279.0,77274.0,0.258817]
[1744138802236,0.258772,77288.0,77275.0,0.38507264]
[1744138802628,0.258772,77288.0,77278.0,0.05]
[1744138802831,0.271724,77284.0,77283.0,0.001]
[1744138803403,0.271724,77284.0,77278.0,0.17625864]
[1744138803404,0.258802,77279.0,77278.0,0.17625864]
[1744138803606,0.271742,77279.0,77278.0,0.05]
[1744138803746,0.611742,77279.0,77278.0,0.05]
[1744138803946,0.258802,77279.0,77278.0,0.05]
[1744138804193,0.271742,77279.0,77278.0,0.05]
[1744138804420,0.258796,77281.0,77278.0,0.05]
[1744138804620,0.258793,77282.0,77278.0,0.05]
[1744138804827,0.258802,77279.0,77278.0,0.05]
[1744138804987,0.258792,77282.0,77278.0,0.05]
[1744138805217,0.01203315,77285.0,77283.0,0.258789]
[1744138805545,0.25877,77289.0,77283.0,0.258788]
[1744138805672,0.258776,77287.0,77283.0,0.258788]
[1744138805873,0.258779,77286.0,77281.0,0.258793]
[1744138806072,0.258779,77286.0,77282.0,0.12625864]
[1744138806272,0.258786,77284.0,77282.0,0.12625864]
[1744138806569,0.271728,77283.0,77282.0,0.12625864]
[1744138806771,0.611742,77279.0,77261.0,0.0004]
[1744138806971,0.794542,77279.0,77261.0,0.259262]
[1744138807196,0.794542,77279.0,77264.0,0.02414479]
[1744138807413,0.271791,77265.0,77264.0,0.02414479]
[1744138807571,0.271791,77265.0,77261.0,0.0004]
[1744138807572,0.271801,77262.0,77261.0,0.0004]
[1744138808086,0.611801,77262.0,77261.0,0.0004]
[1744138808486,0.8301044,77262.0,77261.0,0.0004]
[1744138808836,0.352943,77261.0,77256.0,0.0001676]
[1744138809074,0.47920164,77261.0,77256.0,0.0001676]
[1744138810303,0.48120164,77261.0,77256.0,0.0001676]
[1744138810560,0.47920164,77261.0,77256.0,0.0001676]
[1744138810859,0.48120164,77261.0,77256.0,0.0001676]
[1744138811044,0.58105631,77261.0,77256.0,0.0001676]
[1744138811640,0.48120164,77261.0,77256.0,0.0001676]
[1744138811902,0.359943,77261.0,77256.0,0.0001676]
[1744138812109,0.357943,77261.0,77256.0,0.0001676]
[1744138812454,0.019943,77261.0,77256.0,0.0001676]
[1744138812855,0.618805,77261.0,77256.0,0.0001676]
[1744138813323,0.616805,77261.0,77256.0,0.0001676]
[1744138813535,0.618805,77261.0,77256.0,0.0001676]
[1744138813687,0.605862,77261.0,77256.0,0.0001676]
[1744138813897,0.002,77261.0,77260.0,0.38512484]
[1744138814076,0.005,77261.0,77260.0,0.12625884]
[1744138814275,0.005,77261.0,77260.0,0.39806784]
[1744138814519,0.005,77261.0,77260.0,0.41260869]
[1744138815496,0.005,77261.0,77260.0,0.47134683]
[1744138815691,0.0481,77314.0,77296.0,0.012937]
[1744138815899,8.666e-05,77300.0,77299.0,0.271669]
[1744138816123,8.666e-05,77300.0,77299.0,0.41246849]
[1744138816954,8.666e-05,77300.0,77299.0,0.43653531]
[1744138817098,0.00208666,77300.0,77299.0,0.43653531]
[1744138817657,0.0004,77309.0,77308.0,0.28618085]
[1744138817829,0.0004,77309.0,77308.0,0.41243949]
[1744138818031,0.0004,77309.0,77308.0,0.12625864]
[1744138818032,0.013335,77309.0,77308.0,0.12625864]
[1744138818259,0.013335,77309.0,77300.0,0.02406682]
[1744138818260,0.258728,77301.0,77300.0,0.02406682]
[1744138818433,0.258728,77301.0,77300.0,0.15032546]
[1744138818640,0.271664,77301.0,77300.0,0.02406682]
[1744138819275,0.012936,77300.0,77299.0,0.0001138]
[1744138820703,0.02817947,77300.0,77299.0,0.0001138]
[1744138821110,0.258725,77302.0,77299.0,0.0001138]
[1744138821309,0.012936,77300.0,77299.0,0.0001138]
[1744138821719,0.40348868,77300.0,77299.0,0.0001138]
[1744138822154,0.352936,77300.0,77299.0,0.0001138]
[1744138822354,0.352936,77300.0,77299.0,0.0071138]
[1744138822727,0.352936,77300.0,77299.0,0.0041138]
[1744138823538,0.258732,77301.0,77299.0,0.0001138]
[1744138824083,0.28628489,77302.0,77300.0,0.38499064]
[1744138824084,0.01461989,77302.0,77300.0,0.38499064]
[1744138824284,0.012936,77300.0,77299.0,0.0001138]
[1744138824477,0.271668,77300.0,77299.0,0.0001138]
[1744138824776,0.271668,77300.0,77299.0,0.0011138]
[1744138825135,0.271668,77300.0,77299.0,0.0001138]
[1744138825499,0.271668,77300.0,77299.0,0.0031138]
[1744138825628,0.258709,77307.0,77301.0,0.258725]
[1744138825826,0.258709,77307.0,77302.0,0.42508498]
[1744138826041,0.258716,77305.0,77302.0,0.12625864]
[1744138826246,0.258719,77304.0,77302.0,0.12625864]
[1744138826450,0.0004,77309.0,77303.0,0.012936]
[1744138826651,0.259103,77309.0,77304.0,0.12625864]
[1744138826876,0.258709,77307.0,77304.0,0.12625864]
[1744138827297,0.258713,77306.0,77304.0,0.12625864]
[1744138827497,0.258729,77301.0,77299.0,0.0001138]
[1744138827696,0.258729,77302.0,77299.0,0.0001138]
[1744138827943,0.258729,77301.0,77299.0,0.0001138]
[1744138828074,0.271665,77301.0,77299.0,0.0001138]
[1744138828278,0.012936,77300.0,77299.0,0.0001138]
[1744138828503,0.352936,77300.0,77299.0,8e-07]
[1744138829056,0.611668,77300.0,77299.0,8e-07]
[1744138830032,0.73792664,77300.0,77299.0,8e-07]
[1744138830438,0.73792664,77300.0,77278.0,0.05]
[1744138830439,0.611742,77279.0,77278.0,0.05]
[1744138830633,0.794062,77279.0,77278.0,0.05008666]
[1744138832117,0.271742,77279.0,77278.0,0.05008666]
[1744138832343,0.25878,77286.0,77281.0,0.012939]
[1744138832699,0.258779,77286.0,77282.0,0.27173]
[1744138832840,0.258784,77285.0,77282.0,0.12625864]
[1744138833023,0.258785,77284.0,77282.0,0.12625864]
[1744138833440,0.001,77286.0,77282.0,0.12625864]
[1744138833647,0.258782,77285.0,77282.0,0.12625864]
[1744138833842,0.25878,77286.0,77282.0,0.38905064]
[1744138834068,0.258783,77285.0,77282.0,0.13025864]
[1744138834271,0.258783,77285.0,77282.0,0.12625864]
[1744138834470,0.271708,77289.0,77285.0,0.258781]
[1744138834471,0.258769,77289.0,77285.0,0.258781]
[1744138834674,0.258772,77288.0,77286.0,0.12625864]
[1744138835034,0.258769,77289.0,77286.0,0.12625864]
[1744138835185,0.258774,77288.0,77286.0,0.12625864]
[1744138835970,0.258775,77287.0,77286.0,0.12625864]
[1744138836296,0.271728,77283.0,77282.0,0.01]
[1744138837070,0.271728,77283.0,77282.0,0.005]
[1744138837277,0.271728,77283.0,77267.0,0.28632285]
[1744138837278,0.271742,77279.0,77278.0,0.05008666]
[1744138838541,0.611742,77279.0,77278.0,0.05008666]
[1744138838702,0.611742,77279.0,77278.0,6.6e-07]
[1744138838900,0.86425609,77279.0,77278.0,6.6e-07]
[1744138839342,0.86425609,77279.0,77278.0,0.00600066]
[1744138839724,0.611742,77279.0,77278.0,0.00600066]
[1744138839927,0.612742,77279.0,77278.0,6.6e-07]
[1744138840331,0.614742,77279.0,77278.0,0.00100066]
[1744138840540,0.614742,77279.0,77278.0,0.00200066]
[1744138840541,0.615742,77279.0,77278.0,0.00200066]
[1744138840762,0.613742,77279.0,77278.0,0.00100066]
[1744138840983,0.64913403,77279.0,77278.0,6.6e-07]
[1744138841290,0.77739267,77279.0,77278.0,6.6e-07]
[1744138842026,0.7768752,77279.0,77278.0,6.6e-07]
[1744138842270,0.7778752,77279.0,77278.0,6.6e-07]
[1744138846005,0.74048317,77279.0,77278.0,6.6e-07]
[1744138846206,0.61422453,77279.0,77278.0,6.6e-07]
[1744138846779,0.79618453,77279.0,77278.0,6.6e-07]
[1744138847600,0.92244317,77279.0,77278.0,6.6e-07]
[1744138850226,0.79618453,77279.0,77278.0,6.6e-07]
[1744138850362,1.04869862,77279.0,77278.0,6.6e-07]
[1744138851745,0.92244317,77279.0,77278.0,6.6e-07]
[1744138852002,0.61422453,77279.0,77278.0,6.6e-07]
[1744138852261,0.003,77279.0,77278.0,0.27174566]
[1744138852433,0.003,77279.0,77278.0,6.6e-07]
[1744138852606,0.003,77279.0,77278.0,0.27174566]
[1744138852945,0.003,77279.0,77278.0,0.41254515]
[1744138853149,0.001,77279.0,77278.0,0.41254515]
[1744138853537,0.258753,77294.0,77289.0,0.258767]
[1744138853691,0.258745,77297.0,77291.0,0.258762]
[1744138853893,0.012936,77302.0,77292.0,0.13919564]
[1744138854116,0.012936,77300.0,77292.0,0.13919564]
[1744138854317,0.012936,77300.0,77292.0,0.12625864]
[1744138854318,0.25875,77295.0,77292.0,0.12625864]
[1744138854670,0.25874,77298.0,77292.0,0.13919564]
[1744138854780,0.258742,77299.0,77294.0,0.258751]
[1744138854986,0.258732,77300.0,77297.0,0.258741]
[1744138855191,0.25873,77301.0,77297.0,0.258741]
[1744138855386,0.258722,77303.0,77299.0,0.258735]
[1744138855602,0.0004,77309.0,77308.0,0.27164]
[1744138855799,0.258723,77303.0,77299.0,0.258735]
[1744138856061,0.271641,77308.0,77300.0,0.12625864]
[1744138856214,0.001,77302.0,77301.0,0.271664]
[1744138856414,0.258713,77306.0,77302.0,0.258722]
[1744138856617,0.258706,77308.0,77303.0,0.38497964]
[1744138856913,0.0004,77309.0,77306.0,0.271646]
[1744138857114,0.0004,77309.0,77308.0,0.012935]
[1744138857351,0.0004,77309.0,77308.0,0.14619364]
[1744138857554,0.0004,77309.0,77308.0,0.14878044]
[1744138857757,0.0004,77309.0,77308.0,0.15373449]
[1744138859577,0.0004,77309.0,77308.0,0.15873449]
[1744138859763,0.013335,77309.0,77308.0,0.005]
[1744138859964,0.013335,77309.0,77308.0,0.01]
[1744138860161,0.353335,77309.0,77308.0,0.005]
[1744138860545,0.25879,77283.0,77279.0,0.3079]
[1744138860827,0.08349171,77309.0,77293.0,0.012937]
[1744138861024,0.258728,77301.0,77295.0,0.258748]
[1744138861221,0.258728,77301.0,77296.0,0.12625864]
[1744138861524,0.012938,77290.0,77284.0,0.01454085]
[1744138861665,0.012937,77292.0,77285.0,0.13919764]
[1744138861867,0.012938,77286.0,77285.0,0.12625864]
[1744138862069,0.258792,77282.0,77281.0,0.00012528]
[1744138862272,0.271731,77282.0,77281.0,0.00012528]
[1744138862478,0.012939,77285.0,77281.0,0.00012528]
[1744138862730,0.271731,77282.0,77281.0,0.00012528]
[1744138862888,0.012939,77284.0,77281.0,0.00012528]
[1744138863095,0.271731,77282.0,77281.0,0.00012528]
[1744138863569,0.611731,77282.0,77281.0,2.8e-07]
[1744138863748,0.73798964,77282.0,77281.0,2.8e-07]
[1744138863924,0.258861,77262.0,77260.0,2e-07]
[1744138864125,0.271803,77262.0,77260.0,0.0004184]
[1744138864737,0.28692732,77262.0,77260.0,0.0004184]
[1744138864957,0.25885,77265.0,77260.0,0.0004184]
[1744138865153,0.25885,77265.0,77260.0,0.2592834]
[1744138865362,0.258854,77264.0,77260.0,0.0084184]
[1744138865569,0.001,77262.0,77260.0,0.0084184]
[1744138865779,0.001,77262.0,77260.0,0.2672834]
[1744138865981,0.34,77269.0,77261.0,0.13920164]
[1744138866184,0.01481256,77274.0,77272.0,0.258825]
[1744138866402,0.012938,77286.0,77279.0,0.01294]
[1744138866578,0.34,77289.0,77282.0,0.25879]
[1744138866579,0.012938,77289.0,77282.0,0.25879]
[1744138866797,0.012936,77298.0,77292.0,0.258758]
[1744138866999,0.258737,77299.0,77295.0,0.271684]
[1744138867196,0.01466935,77299.0,77298.0,0.012936]
[1744138867362,0.5176562,77322.0,77298.0,0.012936]
[1744138867363,0.0003352,77310.0,77307.0,0.271642]
[1744138867566,0.2719712,77310.0,77307.0,0.12625864]
[1744138867758,0.0003352,77310.0,77307.0,0.12625864]
[1744138867960,0.0134433,77309.0,77308.0,0.12625864]
[1744138868715,0.0005083,77309.0,77308.0,0.12625864]
[1744138868937,0.0134433,77309.0,77308.0,0.12625864]
[1744138869478,0.0134433,77309.0,77294.0,0.258751]
[1744138869479,0.271672,77299.0,77296.0,0.01454085]
[1744138869685,0.271675,77298.0,77297.0,0.12625864]
[1744138869878,0.258745,77297.0,77292.0,0.271695]
[1744138870083,0.271663,77302.0,77296.0,0.012937]
[1744138870281,0.258759,77292.0,77285.0,0.27172]
[1744138870505,0.258767,77290.0,77286.0,0.271716]
[1744138870822,0.258764,77291.0,77287.0,0.13919664]
[1744138871284,0.38843017,77300.0,77297.0,0.258741]
[1744138871490,0.258737,77299.0,77295.0,0.271684]
[1744138871618,0.271673,77299.0,77294.0,0.258751]
[1744138871818,0.271673,77299.0,77295.0,0.258747]
[1744138872069,0.25874,77298.0,77295.0,0.258748]
[1744138872391,0.258732,77301.0,77298.0,0.258738]
[1744138872585,0.012935,77306.0,77299.0,0.12625864]
[1744138872786,0.258722,77303.0,77299.0,0.38499364]
[1744138873218,0.258726,77302.0,77299.0,0.38499364]
[1744138873532,0.271682,77296.0,77294.0,0.004]
[1744138873661,0.271685,77295.0,77294.0,0.13025864]
[1744138873846,0.271685,77295.0,77294.0,0.12625864]
[1744138874068,0.34,77302.0,77296.0,0.258745]
[1744138874274,0.34,77302.0,77298.0,0.260737]
[1744138874498,0.271671,77299.0,77298.0,0.002]
[1744138874707,0.271671,77299.0,77294.0,0.12625864]
[1744138874917,0.271671,77299.0,77294.0,0.13025864]
[1744138875455,0.258742,77297.0,77294.0,0.12625864]
[1744138875860,0.012937,77297.0,77294.0,0.12625864]
[1744138876056,0.012937,77297.0,77294.0,0.13425864]
[1744138876235,0.258748,77295.0,77294.0,0.13025864]
[1744138876441,0.258748,77295.0,77272.0,0.0001675]
[1744138876442,0.34,77294.0,77272.0,0.0001675]
[1744138876652,0.271763,77273.0,77272.0,0.01009108]
[1744138876854,0.271763,77273.0,77272.0,0.12642614]
[1744138877071,0.271763,77273.0,77272.0,0.0001675]
[1744138877990,0.258791,77283.0,77278.0,0.271745]
[1744138878225,0.258796,77281.0,77277.0,0.01294]
[1744138878422,0.258796,77281.0,77276.0,0.271749]
[1744138878717,0.258802,77280.0,77275.0,0.271755]
[1744138878901,0.271732,77282.0,77275.0,0.271755]
[1744138878902,0.258793,77282.0,77278.0,0.258805]
[1744138879112,0.598773,77288.0,77285.0,0.258782]
[1744138879261,0.25878,77286.0,77282.0,0.258791]
[1744138879462,0.012938,77291.0,77283.0,0.12625864]
[1744138879662,0.012939,77285.0,77277.0,0.258807]
[1744138879899,0.258795,77282.0,77279.0,0.258799]
[1744138880136,0.01485743,77284.0,77281.0,0.258794]
[1744138880329,0.012937,77293.0,77284.0,0.012939]
[1744138880526,0.258765,77290.0,77285.0,0.12625864]
[1744138880879,0.012937,77296.0,77286.0,0.012938]
[1744138881145,0.012936,77302.0,77296.0,0.271682]
[1744138881384,0.01475138,77298.0,77297.0,0.02747785]
[1744138881569,0.0003352,77310.0,77308.0,0.27164]
[1744138881988,0.0003352,77310.0,77308.0,0.4498971]
[1744138882411,0.00052553,77309.0,77308.0,0.4962971]
[1744138882621,0.00052553,77309.0,77308.0,0.45883949]
[1744138882830,0.00052553,77309.0,77308.0,0.46183949]
[1744138883028,0.00052553,77309.0,77308.0,0.45883949]
[1744138883262,0.00052553,77309.0,77308.0,0.47461264]
[1744138883468,0.012933,77316.0,77308.0,0.47461264]
[1744138883610,0.258686,77314.0,77311.0,0.01454085]
[1744138883827,0.258686,77314.0,77310.0,0.271629]
[1744138883828,0.258686,77314.0,77312.0,0.12625864]
[1744138884230,0.271637,77309.0,77308.0,0.012]
[1744138884714,0.221637,77309.0,77308.0,0.006]
[1744138884918,0.561637,77309.0,77308.0,0.006]
[1744138885204,0.68789245,77309.0,77308.0,0.006]
[1744138885361,0.86941245,77309.0,77308.0,1e-06]
[1744138885760,0.258777,77287.0,77282.0,0.258791]
[1744138885982,0.258777,77287.0,77283.0,0.12625864]
[1744138886500,0.258764,77291.0,77286.0,0.258778]
[1744138886660,0.25877,77289.0,77287.0,0.12625864]
[1744138887247,0.258769,77289.0,77287.0,0.12625864]
[1744138887761,0.271697,77292.0,77288.0,0.258771]
[1744138887962,0.258762,77291.0,77287.0,0.12625864]
[1744138888167,0.258772,77288.0,77287.0,0.12625864]
[1744138888463,0.258772,77288.0,77287.0,0.12925864]
[1744138888702,0.258762,77291.0,77287.0,0.12925864]
[1744138888955,0.34,77299.0,77287.0,0.13919664]
[1744138889155,0.258772,77288.0,77287.0,0.12625864]
[1744138889365,0.012938,77290.0,77287.0,0.004]
[1744138889633,0.012938,77287.0,77282.0,0.00012553]
[1744138889836,0.258781,77286.0,77283.0,0.12625864]
[1744138890256,0.258781,77286.0,77282.0,0.25891753]
[1744138890257,0.271724,77284.0,77282.0,0.00012553]
[1744138890471,0.611728,77283.0,77282.0,0.00012553]
[1744138891358,0.62624239,77283.0,77282.0,0.00012553]
[1744138891662,0.57624239,77283.0,77282.0,0.00012553]
[1744138891865,0.58918139,77283.0,77282.0,0.00012553]
[1744138892430,0.58918139,77283.0,77282.0,0.00112553]
[1744138892431,0.59518139,77283.0,77282.0,0.00112553]
[1744138892625,0.58918139,77283.0,77282.0,0.00012553]
[1744138893051,0.59418139,77283.0,77282.0,0.00012553]
[1744138893223,0.58918139,77283.0,77282.0,0.00012553]
[1744138894067,0.71073773,77283.0,77282.0,0.00112553]
[1744138894536,0.59218139,77283.0,77282.0,0.00012553]
[1744138894731,0.58918139,77283.0,77282.0,0.00012553]
[1744138894975,0.59318139,77283.0,77282.0,0.00012553]
[1744138895182,0.59618139,77283.0,77282.0,0.00012553]
[1744138897102,0.611763,77273.0,77272.0,0.0001675]
[1744138897299,0.91958164,77273.0,77272.0,0.0004182]
[1744138897852,0.91958164,77273.0,77272.0,0.0001675]
[1744138898654,0.91958164,77273.0,77272.0,0.0011675]
[1744138898871,0.92758164,77273.0,77272.0,0.0011675]
[1744138899421,0.87958164,77273.0,77272.0,0.0011675]
[1744138899644,0.766264,77273.0,77272.0,0.0011675]
[1744138899840,0.348,77273.0,77272.0,0.0011675]
[1744138900409,0.369941,77273.0,77272.0,0.0011675]
[1744138900563,0.628763,77273.0,77272.0,0.0011675]
[1744138900889,0.619763,77273.0,77272.0,0.0011675]
[1744138901190,0.2588,77280.0,77272.0,0.0011675]
[1744138901191,0.012939,77285.0,77279.0,0.01294]
[1744138901425,0.38843017,77300.0,77282.0,0.271731]
[1744138901618,0.01420154,77286.0,77284.0,0.271724]
[1744138901775,0.012939,77283.0,77271.0,0.271763]
[1744138902045,0.38843017,77282.0,77277.0,0.258806]
[1744138902389,0.01482652,77286.0,77281.0,0.012939]
[1744138902515,0.001,77283.0,77280.0,0.012939]
[1744138902695,0.001,77283.0,77282.0,0.258792]
[1744138902907,0.001,77283.0,77282.0,0.39798964]
[1744138903106,0.01480907,77289.0,77288.0,0.258772]
[1744138903349,0.34,77292.0,77290.0,0.258764]
[1744138903560,0.38843017,77300.0,77297.0,0.258739]
[1744138903731,0.012934,77313.0,77302.0,0.012936]
[1744138903941,0.2590112,77317.0,77309.0,0.012935]
[1744138904139,0.0003352,77317.0,77311.0,0.012934]
[1744138904339,0.0003352,77317.0,77313.0,0.012934]
[1744138904540,0.0003352,77317.0,77316.0,0.258678]
[1744138904746,0.00075393,77317.0,77316.0,0.39786964]
[1744138904946,0.0003352,77322.0,77319.0,0.258668]
[1744138905141,0.0004607,77322.0,77321.0,0.39946049]
[1744138905342,0.0004607,77322.0,77321.0,0.45819863]
[1744138905603,0.0004607,77322.0,77321.0,0.47113163]
[1744138905732,0.0004607,77322.0,77321.0,0.49515975]
[1744138905943,0.0004607,77322.0,77321.0,0.22356575]
[1744138906138,0.012934,77311.0,77309.0,0.05973814]
[1744138906337,0.271628,77312.0,77310.0,0.12625864]
[1744138906536,0.012934,77311.0,77310.0,0.12625864]
[1744138906999,0.012935,77309.0,77305.0,0.0487]
[1744138907243,0.012934,77311.0,77306.0,0.38497064]
[1744138907648,0.012934,77311.0,77310.0,0.002]
[1744138907918,0.352934,77311.0,77310.0,0.002]
[1744138908462,0.34,77311.0,77310.0,0.002]
[1744138908795,0.001,77312.0,77311.0,0.271629]
[1744138908963,0.0004607,77322.0,77321.0,0.258661]
[1744138909173,0.27367006,77322.0,77318.0,0.271604]
[1744138909375,0.0004607,77322.0,77315.0,0.25868]
[1744138909575,0.012933,77320.0,77316.0,0.12625864]
[1744138910253,0.271594,77321.0,77318.0,0.258671]
[1744138910463,0.0044607,77322.0,77321.0,0.271594]
[1744138910662,0.0004607,77322.0,77321.0,0.39785264]
[1744138911226,0.0004607,77322.0,77321.0,0.41239349]
[1744138911449,0.0044607,77322.0,77321.0,0.41239349]
[1744138911808,0.0044607,77322.0,77321.0,0.40768393]
[1744138911809,0.0004607,77322.0,77321.0,0.40768393]
[1744138912164,0.0014607,77322.0,77321.0,0.41468393]
[1744138912370,0.0014607,77322.0,77321.0,0.40768393]
[1744138912511,0.0024607,77322.0,77321.0,0.40868393]
[1744138912714,0.0024607,77322.0,77321.0,0.41468393]
[1744138912914,0.0014607,77322.0,77321.0,0.40868393]
[1744138913581,0.0004607,77322.0,77321.0,0.42222478]
[1744138913752,0.000335,77324.0,77323.0,0.271587]
[1744138913931,0.000335,77324.0,77323.0,0.41238649]
[1744138915006,0.000335,77324.0,77323.0,0.41738649]
[1744138915214,0.000335,77324.0,77323.0,0.41238649]
[1744138915507,0.001335,77324.0,77323.0,0.42138649]
[1744138915709,0.002335,77324.0,77323.0,0.42238649]
[1744138915907,0.001335,77324.0,77323.0,0.41338649]
[1744138916211,0.002335,77324.0,77323.0,0.42138649]
[1744138916351,0.001335,77324.0,77323.0,0.42038649]
[1744138916553,1e-06,77324.0,77323.0,0.46598649]
[1744138916918,0.001001,77324.0,77323.0,0.46798649]
[1744138917316,0.001001,77324.0,77323.0,0.40784564]
[1744138917867,0.001001,77324.0,77323.0,0.42238649]
[1744138918682,1e-06,77324.0,77323.0,0.42238649]
[1744138918888,2e-07,77330.0,77329.0,0.271566]
[1744138919100,2e-07,77330.0,77329.0,0.47110363]
[1744138920038,0.0010002,77330.0,77329.0,0.39882464]
[1744138920577,0.0010002,77330.0,77329.0,0.41336549]
[1744138920778,0.0010002,77330.0,77329.0,0.41836549]
[1744138921895,0.6125622,77330.0,77329.0,0.006]
[1744138922085,0.74740052,77330.0,77329.0,0.006]
[1744138922811,0.74640052,77330.0,77329.0,0.005]
[1744138923099,0.6576622,77330.0,77329.0,0.005]
[1744138923304,0.3410002,77330.0,77329.0,0.017931]
[1744138923503,0.3410002,77330.0,77329.0,0.005]
[1744138923726,0.3410002,77330.0,77328.0,0.258636]
[1744138923855,0.3410002,77330.0,77328.0,0.38489464]
[1744138924270,0.0010002,77330.0,77328.0,0.38489464]
[1744138924473,2e-07,77330.0,77328.0,0.38489464]
[1744138924671,2e-07,77330.0,77328.0,0.39782564]
[1744138924919,0.0060002,77330.0,77329.0,0.14018964]
[1744138925291,2e-07,77330.0,77329.0,0.13918964]
[1744138925521,2e-07,77330.0,77329.0,0.14177576]
[1744138925723,2e-07,77330.0,77329.0,0.41495137]
[1744138925926,2e-07,77330.0,77329.0,0.41236549]
[1744138926409,0.0003352,77350.0,77329.0,0.41236549]
[1744138926410,0.25757246,77358.0,77354.0,0.258549]
[1744138926607,0.258542,77357.0,77354.0,0.258549]
[1744138926847,0.01305152,77359.0,77354.0,0.271476]
[1744138927080,0.258538,77358.0,77354.0,0.271476]
[1744138927207,0.01305152,77359.0,77329.0,0.389947]
[1744138927208,0.352927,77357.0,77351.0,0.258558]
[1744138927402,0.012927,77355.0,77352.0,0.12625864]
[1744138927626,0.258552,77354.0,77352.0,0.12625864]
[1744138927825,0.258553,77354.0,77352.0,0.12625864]
[1744138928857,0.27148,77354.0,77352.0,0.12625864]
[1744138929198,0.259551,77354.0,77352.0,0.12625864]
[1744138929368,0.001,77354.0,77352.0,0.12625864]
[1744138929822,0.012929,77341.0,77334.0,0.01293]
[1744138929998,0.012929,77341.0,77323.0,0.4159]
[1744138929999,0.012931,77331.0,77321.0,0.012933]
[1744138930225,0.352929,77340.0,77332.0,0.258624]
[1744138930459,0.34,77347.0,77337.0,0.01293]
[1744138930622,0.34,77347.0,77321.0,0.00993696]
[1744138930623,0.34,77346.0,77341.0,0.012929]
[1744138930769,0.34,77346.0,77342.0,0.39777664]
[1744138931173,0.59870352,77346.0,77342.0,0.39777664]
[1744138931377,0.00012552,77346.0,77342.0,0.39777864]
[1744138931600,0.25870452,77346.0,77343.0,0.258586]
[1744138931801,0.00012552,77346.0,77344.0,0.38484264]
[1744138932325,0.258581,77345.0,77344.0,0.12625864]
[1744138932540,0.27163252,77346.0,77344.0,0.12625864]
[1744138932681,0.258585,77344.0,77342.0,0.004]
[1744138932882,0.00012552,77346.0,77342.0,0.004]
[1744138933124,0.00012552,77346.0,77345.0,0.27151]
[1744138933327,0.00012552,77346.0,77345.0,0.39776864]
[1744138933549,0.25870352,77346.0,77345.0,0.12625864]
[1744138934038,0.012929,77345.0,77344.0,0.002]
[1744138934240,0.27151,77345.0,77344.0,0.001]
[1744138934441,0.258581,77345.0,77344.0,0.001]
[1744138935011,0.00012552,77346.0,77344.0,0.12625864]
[1744138935213,0.00012552,77346.0,77345.0,0.38483964]
[1744138935550,0.012929,77345.0,77344.0,0.001]
[1744138935747,0.27151,77345.0,77344.0,0.001]
[1744138935955,0.27151,77345.0,77344.0,0.002]
[1744138936681,0.27151,77345.0,77344.0,0.001]
[1744138937305,0.61151,77345.0,77344.0,0.001]
[1744138937517,0.65931,77345.0,77344.0,0.001]
[1744138937721,0.65931,77345.0,77344.0,0.002]
[1744138938278,0.00012552,77346.0,77345.0,0.27151]
[1744138938475,0.00012552,77346.0,77345.0,0.47104763]
[1744138938678,0.00012552,77346.0,77345.0,0.49518243]
[1744138939200,0.00012552,77346.0,77345.0,0.43397779]
[1744138939620,0.00012552,77346.0,77345.0,0.43797779]
[1744138940579,0.00012552,77346.0,77345.0,0.16646779]
[1744138940780,0.27163152,77346.0,77345.0,0.04020915]
[1744138941000,0.27163152,77346.0,77345.0,0.004]
[1744138941407,0.27163152,77346.0,77345.0,0.008]
[1744138941830,0.258588,77343.0,77340.0,0.258597]
[1744138941971,0.258592,77342.0,77340.0,0.12625864]
[1744138942177,0.271524,77341.0,77340.0,0.12625864]
[1744138942388,0.012931,77332.0,77328.0,0.00989397]
[1744138942589,0.012931,77330.0,77329.0,0.12625864]
[1744138943015,0.012931,77330.0,77329.0,0.15042862]
[1744138943214,0.27156,77332.0,77329.0,0.15042862]
[1744138943388,0.258629,77331.0,77329.0,0.15042862]
[1744138943751,0.258623,77333.0,77330.0,0.258631]
[1744138943890,0.258623,77333.0,77329.0,0.12625864]
[1744138943891,0.012931,77331.0,77329.0,0.007]
[1744138944245,0.012931,77331.0,77299.0,0.517467]
[1744138944246,0.34,77339.0,77302.0,0.4159]
[1744138944445,0.012932,77324.0,77317.0,0.12625864]
[1744138944644,0.012932,77324.0,77318.0,0.258671]
[1744138944645,0.258658,77322.0,77318.0,0.258671]
[1744138944840,0.258646,77326.0,77317.0,0.16336383]
[1744138945043,0.52561694,77328.0,77323.0,0.012932]
[1744138945271,0.52561694,77328.0,77326.0,0.012932]
[1744138945387,0.34,77330.0,77328.0,0.258638]
[1744138945587,0.34,77330.0,77328.0,0.38489664]
[1744138946288,0.598632,77330.0,77328.0,0.12625864]
[1744138946489,0.012932,77326.0,77320.0,0.012933]
[1744138946691,0.258648,77325.0,77321.0,0.38491864]
[1744138947140,0.258648,77325.0,77322.0,0.28282417]
[1744138947341,0.258652,77324.0,77322.0,0.02416617]
[1744138947536,0.012932,77322.0,77317.0,0.26818836]
[1744138947837,0.258665,77321.0,77318.0,0.12625864]
[1744138948414,0.258652,77324.0,77319.0,0.271601]
[1744138948628,0.271544,77336.0,77327.0,0.271571]
[1744138948845,0.34,77331.0,77329.0,0.012931]
[1744138949045,0.012935,77309.0,77301.0,0.012936]
[1744138949245,0.258695,77311.0,77305.0,0.012935]
[1744138949402,0.53855094,77312.0,77303.0,0.12625864]
[1744138949403,0.258708,77307.0,77306.0,0.12625864]
[1744138949598,0.258705,77308.0,77306.0,0.12625864]
[1744138949804,0.271637,77309.0,77306.0,0.12625864]
[1744138950077,0.53855094,77312.0,77306.0,0.38496864]
[1744138950279,0.258703,77309.0,77306.0,0.38496864]
[1744138950600,0.258703,77309.0,77306.0,0.13425864]